[Event "Susha Chess Rapid Women 2022"]
[Site "Shusha"]
[Date "2022.09.22"]
[Round "4.2"]
[White "Efroimski, Marsel"]
[Black "Fataliyeva, Ulviyya"]
[Result "0-1"]
[ECO "B13"]
[WhiteElo "2462"]
[BlackElo "2408"]
[Annotator "TA"]
[PlyCount "68"]
[EventDate "2022.09.21"]
[EventType "tourn"]
[EventCountry "AZE"]
[SourceTitle "playchess.com"]
[Source "ChessBase"]
[SourceQuality "1"]
[TimeControl "900+10"]

{[%evp 12,68,16,20,15,-1,-4,-8,-8,-12,-5,-179,-169,-176,-186,-165,-174,-217,4,0,15,0,0,0,-6,0,19,11,27,13,45,23,35,16,25,15,19,16,11,10,47,10,16,16,635,-383,-383,-383,-187,-383,-383,-501,-501,-494,-494,-29975,-29976,-29998,-29999]} 1. e4 {[%emt 0:00:00]} c6 {[%emt 0:00:03]} 2. d4 {[%emt 0:00:01]} d5 {[%emt 0:00:01]} 3. exd5 {[%emt 0:00:01]} cxd5 {[%emt 0:00:01]} 4. c3 {[%emt 0:00:01]} Nc6 {[%emt 0:00:53]} 5. Bd3 {[%emt 0:00:01]} Nf6 {[%emt 0:00:02]} 6. Bf4 {[%emt 0:00:09]} Bg4 {[%emt 0:00:25]} 7. Qb3 {[%emt 0:00:11]} e5 {[%emt 0:00:20] B13: Caro-Kann: Exchange Variation and Panov-Botvinnik Attack.} 8. Bxe5 {[%emt 0:01:29] 8.h3 is becoming the main line.} Qe7 {[%emt 0:00:23]} 9. Ne2 {[%emt 0:00:46] Black must now prevent Bxf6.} (9. h3 {is interesting.} Nxe5 10. dxe5 Qxe5+ 11. Ne2) 9... Nxe5 {[%emt 0:01:11] The position is equal.} ({Don't play} 9... Bxe2 10. Bxf6 (10. Bxe2 Nxe5 11. dxe5 Qxe5 $11) 10... gxf6 11. Bxe2 $16) 10. dxe5 {[%emt 0:00:01]} Qxe5 {[%emt 0:00:02]} 11. Qxb7 $2 {[%emt 0:00:57]} (11. h3 $11 Bxe2 12. Qb5+ Kd8 13. Bxe2) 11... Rb8 $19 {[%emt 0:00:05]} 12. Qxa7 {[%emt 0:00:29] [#]} Bxe2 $146 {[%emt 0:02:41]} ({And not} 12... Rxb2 13. Qa8+ Rb8 14. Qa4+ Bd7 15. Qd4 $11) ({Predecessor:} 12... Rxb2 13. Qa8+ Kd7 14. Qa7+ Kd8 15. Qa8+ Kc7 16. Qa7+ Kd8 17. Qa8+ Kc7 18. Qa7+ {½-½ (18) Stukopin,A (2598)-Postny,E (2586) Rockville 2018}) 13. Bxe2 {[%emt 0:00:56]} Rxb2 {[%emt 0:00:02][%csl Gb2][%cal Re5e2]} 14. Qa8+ {[%emt 0:00:53] [#]} Rb8 $2 {[%emt 0:00:53]} ({Black should try} 14... Kd7 $1 $19 {[%csl Gb2][%cal Re5e2]} 15. Nd2 Bd6 16. Qa7+ (16. Qxh8 Rxd2 17. Kxd2 Ne4+ 18. Kd1 Nxc3+ 19. Kc2 Qxe2+ 20. Kxc3 Be5+ 21. Kb4 Qb2+ 22. Ka5 Qc3+ 23. Ka4 Qc2+ 24. Kb4 Bd6+ 25. Ka5 Qc5+ 26. Ka6 Qc4+ 27. Kb7 Qb5+ 28. Ka7 Bc5+ 29. Ka8 Qa6+ 30. Kb8 Bd6#) 16... Ke6) 15. Qa4+ {[%emt 0:00:10]} Nd7 {[%emt 0:00:37]} 16. Qc2 {[%emt 0:03:20]} (16. Nd2 {is more complex.} Bc5 17. Rc1 Qg5 18. g3) 16... Bd6 {[%emt 0:00:16]} 17. Nd2 {[%emt 0:00:25]} Rc8 {[%emt 0:01:37]} 18. Nf3 {[%emt 0:00:51]} Qf6 {[%emt 0:03:24]} 19. O-O {[%emt 0:00:15] Hoping for Bb5.} O-O {[%emt 0:00:02]} 20. Qd3 {[%emt 0:02:07]} Rfe8 {[%emt 0:01:09]} 21. Rfe1 {[%emt 0:01:45]} Rxc3 {[%emt 0:01:52]} 22. Qxd5 {[%emt 0:00:09]} Rc5 {[%emt 0:01:30]} 23. Qd2 {[%emt 0:01:48]} Ne5 {[%emt 0:00:21]} 24. Rad1 {[%emt 0:00:17]} Bc7 {[%emt 0:00:01]} 25. Qb4 {[%emt 0:00:50]} Rc6 {[%emt 0:01:13][%cal Bc5c6,Bc6e6,Be6e8][%mdl 32]} 26. Qb5 {[%emt 0:01:24]} Rce6 {[%emt 0:00:04] Strongly threatening ...Nxf3+.} 27. Nd4 $40 {[%emt 0:00:06][%mdl 128] White has some attack.} Ng4 $2 {[%emt 0:00:06][%mdl 8192]} 28. Qxe8+ $4 {[%emt 0:00:11][%mdl 8192]} Rxe8 {[%emt 0:00:02] Dancing on a razor blade.} 29. Bxg4 {[%emt 0:00:02][%cal Re1e8]} Rxe1+ {[%emt 0:00:10]} 30. Rxe1 {[%emt 0:00:00][%cal Re1e8]} h5 {[%emt 0:00:02]} 31. Re8+ {[%emt 0:00:33]} Kh7 {[%emt 0:00:00]} 32. Bf5+ {[%emt 0:00:01]} g6 {[%emt 0:00:01]} 33. h3 {[%emt 0:00:20] [#]} (33. Bxg6+ $19 Kxg6 34. Nf3) 33... Qxd4 {[%emt 0:00:10]} 34. Re7 {[%emt 0:00:04]} Qd1+ {[%emt 0:00:02] Quite a comeback for Black.  Weighted Error Value: White=0.64/Black=0.39} 0-1

[Event "Susha Chess Rapid Women 2022"]
[Site "Shusha"]
[Date "2022.09.22"]
[Round "4.3"]
[White "Zawadzka, Jolanta"]
[Black "Dzagnidze, Nana"]
[Result "1/2-1/2"]
[ECO "B15"]
[WhiteElo "2401"]
[BlackElo "2526"]
[Annotator "TA"]
[PlyCount "81"]
[EventDate "2022.09.21"]
[EventType "tourn"]
[EventCountry "AZE"]
[SourceTitle "playchess.com"]
[Source "ChessBase"]
[SourceQuality "1"]
[TimeControl "900+10"]

{[%evp 15,81,31,18,14,12,22,27,20,35,32,35,34,40,39,45,45,45,33,62,50,49,50,59,61,73,64,68,43,44,52,55,58,68,35,36,30,39,33,38,37,37,38,41,37,38,32,36,34,38,33,31,38,58,58,58,38,58,41,65,65,65,40,65,0,65,0,65,0]} 1. e4 {[%emt 0:00:02]} c6 {[%emt 0:00:02]} 2. d4 {[%emt 0:00:03]} d5 {[%emt 0:00:01]} 3. Nd2 {[%emt 0:00:02]} dxe4 {[%emt 0:00:04]} 4. Nxe4 {[%emt 0:00:02]} Nf6 {[%emt 0:00:03]} 5. Nxf6+ {[%emt 0:00:03]} exf6 {[%emt 0:00:01]} 6. c3 {[%emt 0:00:02]} Bd6 {[%emt 0:00:03]} 7. Bd3 {[%emt 0:00:03]} O-O {[%emt 0:00:04]} 8. Ne2 {[%emt 0:00:02]} Re8 {[%emt 0:00:06]} 9. O-O {[%emt 0:00:04] B15: Caro-Kann: 3 Nc3: 3...g6 and 3...dxe4 4 Nxe4 Nf6 5 Nxf6+ exf6.} Nd7 {[%emt 0:00:12]} 10. Ng3 {[%emt 0:00:12]} Nf8 {[%emt 0:00:31]} 11. f4 {[%emt 0:00:16] White has an edge.} c5 {[%emt 0:02:25]} 12. d5 {[%emt 0:00:20]} g6 {[%emt 0:00:08] [#]} 13. b3 $146 {[%emt 0:00:26]} ({Predecessor:} 13. c4 f5 14. Bd2 Be7 15. Bc3 Bf6 16. Qd2 Qd6 17. Rae1 Bd7 18. Ne2 Re7 19. g3 {½-½ (30) Amiridou,D (1868)-Jakubowska,A (2138) Thessaloniki 2022}) 13... f5 {[%emt 0:00:11]} 14. c4 {[%emt 0:00:16]} Be7 {[%emt 0:05:31][%cal Ob7b5]} 15. Bb2 {[%emt 0:00:03]} Bf6 {[%emt 0:00:01]} 16. Qd2 {[%emt 0:00:04]} Bd7 {[%emt 0:00:22][%cal Ob7b5]} 17. Rae1 {[%emt 0:01:06]} Bxb2 {[%emt 0:00:04]} 18. Qxb2 {[%emt 0:00:03]} Rxe1 {[%emt 0:00:15]} 19. Rxe1 {[%emt 0:00:02]} Qh4 {[%emt 0:00:01]} 20. Qf2 {[%emt 0:03:55] White is more active.} b6 {[%emt 0:00:02]} 21. Ne4 {[%emt 0:03:14][%cal Bg3e4,Be4f2,Bf2d3][%mdl 32]} Qxf2+ {[%emt 0:03:39]} 22. Nxf2 {[%emt 0:00:01]} h6 {[%emt 0:00:35]} 23. g3 {[%emt 0:00:39]} Nh7 {[%emt 0:00:12]} 24. Kg2 {[%emt 0:00:26]} Nf6 {[%emt 0:00:14]} 25. Kf3 {[%emt 0:00:23]} Kf8 {[%emt 0:00:02]} 26. Bc2 {[%emt 0:00:37]} Ne8 {[%emt 0:00:47]} 27. Nd3 {[%emt 0:01:12]} Nd6 {[%emt 0:00:02]} 28. Ne5 {[%emt 0:00:03]} Be8 {[%emt 0:00:02]} 29. Ke3 {[%emt 0:01:15]} f6 {[%emt 0:00:42]} 30. Nf3 {[%emt 0:00:02]} Bd7 {[%emt 0:00:23]} 31. Kd2 {[%emt 0:00:16]} Re8 {[%emt 0:00:46]} 32. Rxe8+ {[%emt 0:02:07]} Bxe8 $14 {[%emt 0:00:03][%mdl 4096] Endgame KBN-KBN} 33. Kc3 {[%emt 0:00:11]} a5 {[%emt 0:00:50]} 34. Nd2 {[%emt 0:00:13]} Ke7 {[%emt 0:00:08]} 35. a3 {[%emt 0:00:05][%cal Ba2a3,Ba3b4][%mdl 32]} h5 {[%emt 0:01:04]} 36. b4 {[%emt 0:00:12]} axb4+ {[%emt 0:00:03]} 37. axb4 {[%emt 0:00:02]} Nb7 {[%emt 0:00:10]} 38. Nf3 {[%emt 0:01:42]} Nd6 {[%emt 0:00:17]} 39. Nd2 {[%emt 0:00:10]} Nb7 $1 {[%emt 0:00:02]} 40. Nf3 {[%emt 0:00:15]} Nd6 {[%emt 0:00:02]} 41. Nd2 {Against Ne4+.  Weighted Error Value: White=0.10 (very precise) /Black=0.05 (flawless)} ({White should try} 41. b5 $14) 1/2-1/2

[Event "Susha Chess Rapid Women 2022"]
[Site "Shusha"]
[Date "2022.09.22"]
[Round "4.4"]
[White "Beydullayeva, Govhar"]
[Black "Arabidze, Meri"]
[Result "1/2-1/2"]
[ECO "E11"]
[WhiteElo "2346"]
[BlackElo "2422"]
[Annotator "TA"]
[PlyCount "146"]
[EventDate "2022.09.21"]
[EventType "tourn"]
[EventCountry "AZE"]
[SourceTitle "playchess.com"]
[Source "ChessBase"]
[SourceQuality "1"]
[TimeControl "900+10"]

{[%evp 10,146,11,16,48,21,16,0,18,-10,-16,-5,-13,-10,6,5,7,0,0,-3,17,16,19,14,14,14,13,13,47,39,41,42,91,47,69,56,79,50,46,43,53,32,62,56,77,74,80,80,85,69,94,94,98,71,75,31,27,0,0,9,22,0,0,0,0,0,0,0,0,0,0,0,0,0,0,0,0,-25,-15,-101,-101,-102,-102,-154,-112,-112,-90,-159,-17,-17,-17,-82,-17,-31,-17,-17,-17,-17,-17,-17,-17,-17,-17,-17,-17,-17,0,-17,-17,-17,0,-8,0,-17,-17,-17,-17,-17,-17,-17,0,0,0,0,0,0,0,0,0,0,0,0,0,0,0,0,0,0,0]} 1. d4 {[%emt 0:00:02]} Nf6 {[%emt 0:00:02]} 2. c4 {[%emt 0:00:01]} e6 {[%emt 0:00:02]} 3. Nf3 {[%emt 0:00:01]} Bb4+ {[%emt 0:00:04]} 4. Nbd2 {[%emt 0:00:03]} O-O {[%emt 0:00:08]} 5. a3 {[%emt 0:00:12]} Be7 {[%emt 0:00:01]} 6. e4 {[%emt 0:00:10]} d6 {[%emt 0:00:02][%cal Oe6e5] E11: Bogo-Indian.} 7. Bd3 {[%emt 0:01:02]} e5 {[%emt 0:00:01]} 8. h3 {[%emt 0:00:04]} Nfd7 {[%emt 0:00:23]} 9. O-O {[%emt 0:00:56]} exd4 {[%emt 0:00:10]} 10. Nxd4 {[%emt 0:00:02]} Bf6 {[%emt 0:00:08]} 11. N2f3 {[%emt 0:00:37] [#]} Nc6 $146 {[%emt 0:00:30]} ({Predecessor:} 11... Re8 12. Bc2 Nc6 13. Rb1 Nde5 14. Nxc6 Nxc6 15. Be3 b6 16. b3 Bb7 17. Re1 Qe7 {0-1 (46) Madebrink,L (2147)-Blomqvist,E (2507) Lidkoping 2019}) 12. Be3 {[%emt 0:00:36]} Re8 {[%emt 0:01:01]} 13. Qc2 {[%emt 0:01:26]} Nxd4 {[%emt 0:02:09]} 14. Bxd4 {[%emt 0:00:28]} Ne5 {[%emt 0:00:26]} 15. Bxe5 {[%emt 0:02:07]} Bxe5 {[%emt 0:00:02]} 16. Rad1 {[%emt 0:00:50]} Qf6 {[%emt 0:00:44]} 17. Nxe5 {[%emt 0:00:15]} (17. b4 {with more complications.} Qg6 18. Nxe5 dxe5 19. Kh2) 17... dxe5 {[%emt 0:00:19]} 18. c5 {[%emt 0:00:07]} Qg5 {[%emt 0:02:03]} 19. Kh1 {[%emt 0:00:14]} Qh4 {[%emt 0:00:23][%cal Oc8h3]} 20. f3 {[%emt 0:02:13]} Re6 {[%emt 0:04:09]} (20... Bd7 $14) 21. Qf2 {[%emt 0:00:10]} Qe7 {[%emt 0:00:20]} 22. Bc4 {[%emt 0:00:25]} Rh6 {[%emt 0:01:34]} 23. Qg3 {[%emt 0:01:58][%cal Og3e5]} Bd7 {[%emt 0:00:44]} 24. Rd5 {[%emt 0:02:08]} Re8 {[%emt 0:00:01]} 25. b4 {[%emt 0:01:08]} (25. Rd3 {keeps more tension.} b5 26. cxb6 axb6 27. Rfd1) 25... Rg6 {[%emt 0:00:30]} 26. Qf2 {[%emt 0:00:19]} Rh6 {[%emt 0:01:51]} 27. Rfd1 {[%emt 0:00:54]} Bc6 {[%emt 0:00:24]} 28. R5d3 {[%emt 0:00:13] [#] Threatens to win with b5.} a6 {[%emt 0:00:07] Inhibits b5.} 29. Qd2 {[%emt 0:00:17]} Rf8 {[%emt 0:00:05]} 30. Qc2 {[%emt 0:00:20] White is more active.} Kh8 {[%emt 0:00:27]} 31. a4 {[%emt 0:00:04]} f5 {[%emt 0:00:19]} 32. Bd5 {[%emt 0:00:43]} fxe4 {[%emt 0:00:04]} 33. Bxe4 {[%emt 0:00:03]} (33. fxe4 {feels hotter.} Qh4 34. Kh2 Qf4+ 35. Kg1) 33... Bxe4 {[%emt 0:00:18]} 34. fxe4 {[%emt 0:00:02]} Qh4 {[%emt 0:00:40]} 35. Rd7 {[%emt 0:00:37]} Rhf6 {[%emt 0:00:13] White must now prevent ...Rf1+.} 36. Qd3 {[%emt 0:00:04] Prevents Rf1+.} ({Don't blunder} 36. Rxc7 $2 Rf1+ 37. Rxf1 Rxf1+ 38. Kh2 Qf4+ 39. g3 Rf2+ 40. Qxf2 Qxf2+ $19) 36... h6 {[%emt 0:00:23]} 37. Rd8 {[%emt 0:00:14]} Kh7 {[%emt 0:00:17]} 38. Rxf8 {[%emt 0:00:07]} Rxf8 $11 {[%emt 0:00:01][%mdl 4096] Endgame KQR-KQR} 39. b5 axb5 {[%emt 0:00:07]} 40. axb5 {[%emt 0:00:15]} Rf2 {[%emt 0:00:15]} 41. Qe3 {[%emt 0:00:06]} Rb2 {[%emt 0:00:11]} 42. Qf3 {[%emt 0:00:17]} Qf4 $40 {[%emt 0:00:19][%mdl 128] Black has some attack.} 43. Qd3 {[%emt 0:00:14]} Qf2 {[%emt 0:00:06][%csl Gb2,LRc5,LRg2][%cal Rf2g2]} 44. Rg1 {[%emt 0:00:08]} (44. Qf3 $11 {remains equal.}) 44... Qxc5 $17 {[%emt 0:00:02]} 45. Qd7 {[%emt 0:00:06]} Rf2 {[%emt 0:00:14] Inhibits Qf5+.} ({But not} 45... Qxb5 $6 46. Qf5+ Kg8 47. Qc8+ Kf7 48. Qf5+ Kg8 49. Qc8+ Kh7 50. Qf5+ Kh8 51. Qf8+ Kh7 52. Qf5+ $11) 46. Qe8 {[%emt 0:00:21]} (46. Kh2 $142) 46... Qd6 {[%emt 0:00:17]} 47. Qc8 {[%emt 0:00:04]} b6 {[%emt 0:00:04]} 48. Qe8 {[%emt 0:00:15]} (48. Kh2 $142) 48... Qg6 {[%emt 0:00:14]} ({Better is} 48... Re2 $17 49. Qf7 Rxe4) 49. Qxe5 $11 {[%emt 0:00:07]} Rc2 {[%emt 0:00:06]} 50. Qd4 {[%emt 0:00:12] [#]} (50. Qf4 $1 $11) 50... Re2 {[%emt 0:00:08]} (50... Qg3 $1 $17) 51. Qc4 {[%emt 0:00:09]} Qxe4 {[%emt 0:00:14]} 52. Qxc7 {[%emt 0:00:01] The position is equal.} Re3 {[%emt 0:00:03] ( -> ...Rxh3+)} 53. Kh2 {[%emt 0:00:06]} Qe5+ {[%emt 0:00:17]} 54. Qxe5 {[%emt 0:00:03]} Rxe5 {[%emt 0:00:01] KR-KR} 55. Rb1 {[%emt 0:00:03]} Kg6 {[%emt 0:00:03]} 56. Kg3 {[%emt 0:00:01]} Rf5 {[%emt 0:00:08]} 57. Rb4 {[%emt 0:00:09]} Kf6 {[%emt 0:00:08]} 58. Kg4 {[%emt 0:00:17]} Rg5+ {[%emt 0:00:07]} 59. Kf3 {[%emt 0:00:02]} Ke6 {[%emt 0:00:02]} 60. h4 {[%emt 0:00:29]} Re5 {[%emt 0:00:33]} 61. Rg4 {[%emt 0:00:21]} Kf6 {[%emt 0:00:22] Prevents Rg6+.} 62. Rb4 {[%emt 0:00:07]} h5 {[%emt 0:00:03]} 63. g4 {[%emt 0:00:13]} hxg4+ {[%emt 0:00:08]} 64. Kxg4 {[%emt 0:00:02]} Ke6 {[%emt 0:00:04]} 65. h5 {[%emt 0:00:06]} Kd6 {[%emt 0:00:06]} 66. Kh4 {[%emt 0:00:22]} Ke6 {[%emt 0:00:23]} 67. Rg4 {[%emt 0:00:04]} Rxb5 {[%emt 0:00:12]} 68. Rxg7 {[%emt 0:00:02]} Rb1 {[%emt 0:00:09]} 69. Rb7 {[%emt 0:00:11]} Kf6 {[%emt 0:00:03]} 70. h6 {[%emt 0:00:05]} Rh1+ {[%emt 0:00:04]} 71. Kg4 {[%emt 0:00:01]} Rxh6 {[%emt 0:00:05] aiming for ...Ke5.} 72. Rxb6+ {[%emt 0:00:01]} Kg7 {[%emt 0:00:00]} 73. Rxh6 {[%emt 0:00:01]} Kxh6 {[%emt 0:00:01] Weighted Error Value: White=0.14 (very precise) /Black=0.15 (very precise)} 1/2-1/2

[Event "Susha Chess Rapid Women 2022"]
[Site "Shusha"]
[Date "2022.09.22"]
[Round "4.5"]
[White "Mammadova, Gulnar"]
[Black "Mammadzada, Gunay"]
[Result "1/2-1/2"]
[ECO "B26"]
[WhiteElo "2382"]
[BlackElo "2473"]
[Annotator "TA"]
[PlyCount "87"]
[EventDate "2022.09.21"]
[EventType "tourn"]
[EventCountry "AZE"]
[SourceTitle "playchess.com"]
[Source "ChessBase"]
[SourceQuality "1"]
[TimeControl "900+10"]

{[%evp 19,87,7,2,0,-8,-7,-2,-7,-6,-8,5,1,41,0,-1,-28,-26,-22,-20,-17,0,0,0,-70,-76,-68,-68,-68,-87,-86,-68,-68,-68,-91,-92,-123,-131,-180,-173,-160,-124,-124,-119,-112,-5,-5,-5,-131,-130,-121,-15,-15,-15,-15,-15,-15,0,0,0,0,0,0,0,0,0,0,0,0,0,0]} 1. e4 {[%emt 0:00:02]} c5 {[%emt 0:00:06]} 2. Nc3 {[%emt 0:00:02]} d6 {[%emt 0:00:02]} 3. g3 {[%emt 0:00:05]} g6 {[%emt 0:00:05]} 4. Bg2 {[%emt 0:00:02]} Bg7 {[%emt 0:00:01]} 5. d3 {[%emt 0:00:03]} Nc6 {[%emt 0:00:26]} 6. Be3 {[%emt 0:00:03]} e6 {[%emt 0:01:23]} 7. Qd2 {[%emt 0:00:02]} Nge7 {[%emt 0:00:04]} 8. Bh6 {[%emt 0:01:14]} Bxh6 {[%emt 0:00:38]} 9. Qxh6 {[%emt 0:00:03]} Nd4 {[%emt 0:00:05]} 10. Qd2 {[%emt 0:00:04]} e5 {[%emt 0:00:20]} 11. Nge2 {[%emt 0:00:24] B26: Closed Sicilian: 3 g3, lines with early Be3.} Bh3 {[%emt 0:01:57]} 12. O-O {[%emt 0:00:04]} Bxg2 {[%emt 0:01:58]} 13. Kxg2 {[%emt 0:00:01]} O-O {[%emt 0:00:07]} (13... Qd7 {feels hotter.} 14. f4 O-O 15. Rae1 f6) 14. f4 {[%emt 0:02:29] [#]} Nxe2 $146 {[%emt 0:00:26]} ({Predecessor:} 14... f5 15. a3 Qd7 16. exf5 Qc6+ 17. Kh3 Nexf5 18. fxe5 dxe5 19. Ne4 Qe6 20. g4 Nxe2 21. Qxe2 {0-1 (45) Iglesias Ferreira,A (1946)-Ano Pla,G (2039) Salobrena 2020}) 15. Qxe2 {[%emt 0:00:28]} d5 {[%emt 0:01:16]} 16. f5 {[%emt 0:03:37] [#] Threatens to win with f6.} (16. exd5 {keeps more tension.} exf4 17. Qe5 fxg3 18. hxg3 Re8 19. Qf4) 16... d4 {[%emt 0:02:29]} 17. f6 {[%emt 0:02:08]} dxc3 {[%emt 0:00:10]} 18. fxe7 {[%emt 0:01:05]} Qxe7 {[%emt 0:00:02]} 19. bxc3 {[%emt 0:00:02]} c4 {[%emt 0:01:34]} 20. d4 {[%emt 0:00:33] Prevents Qc5.} Qa3 {[%emt 0:01:22]} 21. Qxc4 {[%emt 0:01:31]} (21. Qd2 $11) 21... Rac8 $15 {[%emt 0:00:32][%cal Ba8c8,Bc8c3,Bc3a3][%mdl 32]} 22. Qb3 {[%emt 0:00:02]} Rxc3 {[%emt 0:00:17]} 23. Qxa3 {[%emt 0:00:01]} Rxa3 {[%emt 0:00:01]} 24. dxe5 {[%emt 0:00:03][%mdl 4096] Endgame KRR-KRR} Re8 {[%emt 0:01:14]} 25. Rad1 Re7 {Inhibits Rd7.} ({But not} 25... Rxe5 26. Rd8+ Kg7 27. Rd7 Rxe4 28. Rfxf7+ Kh6 29. h4 $14 (29. Rxb7 Re2+ 30. Kh3 Rxc2 $14) (29. Rxh7+ Kg5 $14)) (25... Rxa2 26. Rd7 $11) 26. Rd8+ {[%emt 0:03:21]} Kg7 {[%emt 0:00:01]} 27. Ra1 {[%emt 0:00:02]} Re3 {[%emt 0:00:30]} 28. Rad1 {[%emt 0:01:11]} (28. Rd4 $17) 28... Rxe4 $19 {[%emt 0:01:03]} ({And not} 28... Rxe5 29. R8d7 $17) 29. R8d7 {[%emt 0:00:46]} R7xe5 {[%emt 0:00:30]} 30. Rxb7 {[%emt 0:00:24]} Re2+ {[%emt 0:00:11]} 31. Kg1 {[%emt 0:00:01] [#]} Rxc2 {[%emt 0:00:49]} ({Better is} 31... Rf5 $1 $17 32. Rxa7 Rxc2) 32. Rf1 $11 {[%emt 0:00:00]} Kh6 {[%emt 0:00:14] aiming for ...f5.} 33. Rbxf7 {[%emt 0:00:20]} (33. Rxa7 $11 {remains equal.} f5 34. Rf2 Re1+ 35. Kg2) 33... Rxa2 $17 {[%emt 0:00:16] ...Ree2 is the strong threat.} 34. R1f2 {[%emt 0:00:16]} Re1+ {[%emt 0:00:23]} (34... Rxf2 $17 35. Rxf2 a5) 35. Kg2 $1 $11 {[%emt 0:00:01] The position is equal.} Ree2 {[%emt 0:00:03]} 36. Rxe2 {[%emt 0:00:02]} Rxe2+ {[%emt 0:00:00] KR-KR} 37. Kf3 {[%emt 0:00:05]} Ra2 {[%emt 0:00:09]} 38. h4 {[%emt 0:00:06]} a5 {[%emt 0:00:03]} 39. g4 {[%emt 0:00:16]} Ra3+ {[%emt 0:00:05]} 40. Kf4 {[%emt 0:00:06] Threatening mate with g5+.} Ra4+ {[%emt 0:00:23]} 41. Kf3 {[%emt 0:00:03]} Ra3+ {[%emt 0:00:14]} 42. Kf4 {[%emt 0:00:01] White wants to mate with g5+.} Ra4+ {[%emt 0:00:02]} 43. Kf3 {[%emt 0:00:02] Intending g5+ and mate.} Ra3+ {[%emt 0:00:01]} 44. Ke4 {Weighted Error Value: White=0.18 (very precise) /Black=0.15 (very precise)} 1/2-1/2